fUSD/lending_fUSD_20241128
["ID","MTS","AMOUNT","RATE_DAILY","PERIOD"]
[343666213,1732813840016,-500.0,9.997e-05,2]
[343666214,1732813840025,-500.0,9.997e-05,2]
[343666215,1732813840034,-500.0,9.997e-05,2]
[343666216,1732813840043,-500.0,9.997e-05,2]
[343666217,1732813840053,-500.0,9.997e-05,2]
[343666218,1732813840065,-335.94,9.997e-05,2]
[343666219,1732813840075,-499.88,9.997e-05,2]
[343666220,1732813840088,-500.0,9.997e-05,2]
[343666221,1732813840101,-500.0,9.997e-05,2]
[343666222,1732813840116,-500.0,9.997e-05,2]
[343666223,1732813840127,-500.0,9.997e-05,2]
[343666224,1732813840137,-500.0,9.997e-05,2]
[343666225,1732813840146,-517.87,9.997e-05,2]
[343666226,1732813840155,-247.29718106,9.997e-05,2]
[343666227,1732813840165,-500.0,9.997e-05,2]
[343666228,1732813840174,-500.0,9.997e-05,2]
[343666229,1732813840183,-500.0,9.997e-05,2]
[343666230,1732813840192,-570.06,9.997e-05,2]
[343666231,1732813840201,-500.0,9.997e-05,2]
[343666232,1732813840211,-500.0,9.997e-05,2]
[343666233,1732813840219,-500.0,9.997e-05,2]
[343666234,1732813840229,-500.0,9.997e-05,2]
[343666235,1732813840238,-500.0,9.997e-05,2]
[343666236,1732813840247,-522.73,9.997e-05,2]
[343666237,1732813840257,-279.55,9.997e-05,2]
[343666238,1732813840266,-500.0,9.997e-05,2]
[343666239,1732813840275,-435.36,9.997e-05,2]
[343666240,1732813840285,-500.0,9.997e-05,2]
[343666241,1732813840295,-500.0,9.997e-05,2]
[343666243,1732813840306,-503.03624964,9.997e-05,2]
[343666244,1732813840319,-500.0,9.997e-05,2]
[343666245,1732813840330,-500.0,9.997e-05,2]
[343666246,1732813840340,-500.0,9.997e-05,2]
[343666247,1732813840350,-500.0,9.997e-05,2]
[343666248,1732813840359,-500.0,9.997e-05,2]
[343666249,1732813840369,-500.0,9.997e-05,2]
[343666250,1732813840379,-455.79,9.997e-05,2]
[343666251,1732813840388,-500.0,9.997e-05,2]
[343666252,1732813840397,-500.0,9.997e-05,2]
[343666253,1732813840406,-500.0,9.997e-05,2]
[343666254,1732813840415,-500.0,9.997e-05,2]
[343666255,1732813840424,-444.31,9.997e-05,2]
[343666256,1732813840435,-500.0,9.997e-05,2]
[343666257,1732813840445,-500.0,9.997e-05,2]
[343666258,1732813840456,-500.0,9.997e-05,2]
[343666259,1732813840466,-500.0,9.997e-05,2]
[343666260,1732813840476,-500.0,9.997e-05,2]
[343666261,1732813840485,-188.65,9.997e-05,2]
[343666262,1732813840494,-500.0,9.997e-05,2]
[343666263,1732813840503,-500.0,9.997e-05,2]
[343666264,1732813840513,-511.87894546,9.997e-05,2]
[343666265,1732813840529,-612.04,9.997e-05,2]
[343666266,1732813840549,-500.0,9.997e-05,2]
[343666267,1732813840558,-500.0,9.997e-05,2]
[343666268,1732813840567,-500.0,9.997e-05,2]
[343666269,1732813840576,-500.0,9.997e-05,2]
[343666270,1732813840588,-500.0,9.997e-05,2]
[343666271,1732813840597,-222.20619759,9.997e-05,2]
[343666272,1732813840606,-500.0,9.997e-05,2]
[343666273,1732813840616,-529.65,9.997e-05,2]
[343666274,1732813840625,-500.0,9.997e-05,2]
[343666275,1732813840634,-624.55,9.997e-05,2]
[343666276,1732813840643,-1155.26,9.997e-05,2]
[343666277,1732813840653,-506.64818066,9.997e-05,2]
[343666278,1732813840662,-500.0,9.997e-05,2]
[343666279,1732813840672,-1155.26,9.997e-05,2]
[343666280,1732813840682,-500.0,9.997e-05,2]
[343666281,1732813840694,-1155.26,9.997e-05,2]
[343666282,1732813840703,-500.0,9.997e-05,2]
[343666283,1732813840713,-1155.26,9.997e-05,2]
[343666284,1732813840729,-500.0,9.997e-05,2]
[343666285,1732813840739,-500.0,9.997e-05,2]
[343666286,1732813840750,-500.0,9.997e-05,2]
[343666287,1732813840760,-500.0,9.997e-05,2]
[343666288,1732813840770,-500.0,9.997e-05,2]
[343666289,1732813840779,-500.0,9.997e-05,2]
[343666290,1732813840790,-439.74,9.997e-05,2]
[343666291,1732813840803,-574.04,9.997e-05,2]
[343666292,1732813840812,-500.0,9.997e-05,2]
[343666293,1732813840823,-500.0,9.997e-05,2]
[343666294,1732813840835,-500.0,9.997e-05,2]
[343666295,1732813840844,-500.0,9.997e-05,2]
[343666296,1732813840854,-500.0,9.997e-05,2]
[343666297,1732813840864,-500.0,9.997e-05,2]
[343666298,1732813840873,-500.0,9.997e-05,2]
[343666299,1732813840883,-500.0,9.997e-05,2]
[343666300,1732813840892,-500.0,9.997e-05,2]
[343666301,1732813840902,-199.66,9.997e-05,2]
[343666302,1732813840912,-532.4,9.997e-05,2]
[343666303,1732813840922,-532.4,9.997e-05,2]
[343666304,1732813840932,-532.4,9.997e-05,2]
[343666305,1732813840942,-508.37842452,9.997e-05,2]
[343666306,1732813840953,-1367.39,9.997e-05,2]
[343666307,1732813840962,-1367.39,9.997e-05,2]
[343666308,1732813840972,-1367.39,9.997e-05,2]
[343666309,1732813840981,-501.82443041,9.997e-05,2]
[343666310,1732813840991,-500.0,9.997e-05,2]
[343666311,1732813841002,-419.94,9.997e-05,2]
[343666312,1732813841011,-500.0,9.997e-05,2]
[343666313,1732813841021,-500.0,9.997e-05,2]
[343666314,1732813841030,-500.0,9.997e-05,2]
[343666315,1732813841040,-500.0,9.997e-05,2]
[343666316,1732813841049,-500.0,9.997e-05,2]
[343666317,1732813841059,-500.0,9.997e-05,2]
[343666318,1732813841068,-619.42287643,9.997e-05,2]
[343666319,1732813841077,-371.59630427,9.997e-05,2]
[343666320,1732813841089,-500.0,9.997e-05,2]
[343666321,1732813841098,-500.0,9.997e-05,2]
[343666322,1732813841108,-500.0,9.997e-05,2]
[343666323,1732813841117,-500.0,9.997e-05,2]
[343666324,1732813841126,-622.34,9.997e-05,2]
[343666325,1732813841136,-500.0,9.997e-05,2]
[343666326,1732813841145,-500.0,9.997e-05,2]
[343666327,1732813841154,-500.0,9.997e-05,2]
[343666328,1732813841164,-647.31,9.997e-05,2]
[343666329,1732813841174,-500.0,9.997e-05,2]
[343666330,1732813841183,-500.0,9.997e-05,2]
[343666331,1732813841193,-500.0,9.997e-05,2]
[343666332,1732813841202,-500.0,9.997e-05,2]
[343666333,1732813841211,-500.0,9.997e-05,2]
[343666334,1732813841220,-500.0,9.997e-05,2]
[343666335,1732813841230,-250.8975978,9.997e-05,2]
[343666336,1732813841240,-500.0,9.997e-05,2]
[343666337,1732813841250,-637.39,9.997e-05,2]
[343666338,1732813841259,-1008.02,9.997e-05,2]
[343666339,1732813841268,-1008.02,9.997e-05,2]
[343666340,1732813841278,-1008.02,9.997e-05,2]
[343666341,1732813841287,-500.0,9.997e-05,2]
[343666342,1732813841297,-1008.02,9.997e-05,2]
[343666343,1732813841307,-500.0,9.997e-05,2]
[343666344,1732813841316,-567.79,9.997e-05,2]
[343666345,1732813841325,-500.0,9.997e-05,2]
[343666346,1732813841341,-534.06931364,9.997e-05,2]
[343666347,1732813841351,-500.0,9.997e-05,2]
[343666348,1732813841360,-502.48206929,9.997e-05,2]
[343666349,1732813841369,-501.87398362,9.997e-05,2]
[343666350,1732813841378,-500.0,9.997e-05,2]
[343666351,1732813841387,-500.0,9.997e-05,2]
[343666352,1732813841397,-500.0,9.997e-05,2]
[343666353,1732813841406,-500.0,9.997e-05,2]
[343666354,1732813841415,-500.0,9.997e-05,2]
[343666355,1732813841425,-500.0,9.997e-05,2]
[343666356,1732813841435,-500.0,9.997e-05,2]
[343666357,1732813841444,-500.0,9.997e-05,2]
[343666358,1732813841454,-167.83,9.997e-05,2]
[343666359,1732813841464,-500.0,9.997e-05,2]
[343666360,1732813841474,-568.414257,9.997e-05,2]
[343666361,1732813841483,-568.414257,9.997e-05,2]
[343666362,1732813841492,-500.0,9.997e-05,2]
[343666363,1732813841501,-500.0,9.997e-05,2]
[343666364,1732813841511,-500.0,9.997e-05,2]
[343666365,1732813841520,-500.0,9.997e-05,2]
[343666366,1732813841530,-500.0,9.997e-05,2]
[343666367,1732813841539,-500.0,9.997e-05,2]
[343666368,1732813841549,-495.74,9.997e-05,2]
[343666369,1732813841558,-500.0,9.997e-05,2]
[343666370,1732813841567,-500.0,9.997e-05,2]
[343666371,1732813841577,-500.0,9.997e-05,2]
[343666372,1732813841590,-485.1,9.997e-05,2]
[343666373,1732813841599,-522.6246287,9.997e-05,2]
[343666374,1732813841609,-500.0,9.997e-05,2]
[343666375,1732813841619,-500.0,9.997e-05,2]
[343666376,1732813841628,-500.0,9.997e-05,2]
[343666377,1732813841637,-500.0,9.997e-05,2]
[343666378,1732813841646,-500.0,9.997e-05,2]
[343666379,1732813841656,-409.61,9.997e-05,2]
[343666380,1732813841665,-500.0,9.997e-05,2]
[343666381,1732813841675,-500.0,9.997e-05,2]
[343666382,1732813841684,-454.10489671,9.997e-05,2]
[343666383,1732813841694,-500.0,9.997e-05,2]
[343666384,1732813841704,-500.0,9.997e-05,2]
[343666385,1732813841714,-500.0,9.997e-05,2]
[343666386,1732813841726,-497.34,9.997e-05,2]
[343666387,1732813841735,-500.0,9.997e-05,2]
[343666388,1732813841744,-570.7,9.997e-05,2]
[343666389,1732813841754,-500.0,9.997e-05,2]
[343666390,1732813841763,-581.45102056,9.997e-05,2]
[343666391,1732813841774,-169.38,9.997e-05,2]
[343666392,1732813841783,-500.0,9.997e-05,2]
[343666393,1732813841793,-500.0,9.997e-05,2]
[343666394,1732813841804,-500.0,9.997e-05,2]
[343666395,1732813841815,-390.26604112,9.997e-05,2]
[343666396,1732813841825,-390.26604112,9.998e-05,2]
[343666397,1732813841837,-652.0,9.998e-05,2]
[343666398,1732813841847,-163860.47186028,9.998e-05,2]
[343666399,1732813841857,-244583.23001945,9.998e-05,2]
[343666400,1732813841867,-336349.08382368,9.998e-05,2]
[343666401,1732813841876,-534.86,9.998e-05,2]
[343666402,1732813841886,-500.0,9.998e-05,2]
[343666403,1732813841896,-500.0,9.998e-05,2]
[343666404,1732813841905,-500.0,9.998e-05,2]
[343666405,1732813841915,-500.0,9.998e-05,2]
[343666406,1732813841924,-500.0,9.998e-05,2]
[343666407,1732813841935,-500.0,9.998e-05,2]
[343666408,1732813841944,-500.0,9.998e-05,2]
[343666409,1732813841954,-500.0,9.998e-05,2]
[343666410,1732813841964,-369.32,9.998e-05,2]
[343666411,1732813841974,-500.0,9.998e-05,2]
[343666412,1732813841983,-500.0,9.998e-05,2]
[343666413,1732813841993,-500.0,9.998e-05,2]
[343666414,1732813842003,-613.12,9.998e-05,2]
[343666415,1732813842013,-500.0,9.998e-05,2]
[343666416,1732813842022,-500.0,9.998e-05,2]
[343666417,1732813842032,-211.45,9.998e-05,2]
[343666418,1732813842041,-368.04,9.998e-05,2]
[343666419,1732813842051,-390.26604112,9.998e-05,2]
[343666420,1732813842060,-341.87,9.998e-05,2]
[343666421,1732813842070,-500.0,9.998e-05,2]
[343666422,1732813842079,-500.0,9.998e-05,2]
[343666423,1732813842096,-647.96,9.998e-05,2]
[343666424,1732813842106,-545.35,9.998e-05,2]
[343666425,1732813842115,-545.35,9.998e-05,2]
[343666426,1732813842125,-500.0,9.998e-05,2]
[343666427,1732813842134,-500.0,9.998e-05,2]
[343666428,1732813842144,-1155.26,9.998e-05,2]
[343666429,1732813842153,-500.0,9.998e-05,2]
[343666430,1732813842163,-500.0,9.998e-05,2]
[343666431,1732813842172,-500.0,9.998e-05,2]
[343666432,1732813842181,-532.4,9.998e-05,2]
[343666433,1732813842191,-532.4,9.998e-05,2]
[343666434,1732813842201,-1367.39,9.998e-05,2]
[343666435,1732813842210,-1367.39,9.998e-05,2]
[343666436,1732813842220,-1008.02,9.998e-05,2]
[343666437,1732813842229,-1008.02,9.998e-05,2]
[343666438,1732813842238,-390.26604112,9.998e-05,2]
[343666439,1732813842248,-504.52,9.999e-05,2]
[343666440,1732813842257,-390.26604112,9.999e-05,2]
[343666441,1732813842267,-200.6204452,9.999e-05,3]
[343666442,1732813842276,-16414.06,9.999e-05,2]
[343666443,1732813842286,-546.32230713,9.999e-05,2]
[343666444,1732813842295,-503.81399953,9.999e-05,2]
[343666445,1732813842304,-500.0,9.999e-05,2]
[343666446,1732813842314,-500.0,9.999e-05,2]
[343666447,1732813842323,-500.0,9.999e-05,2]
[343666448,1732813842333,-500.0,9.999e-05,2]
[343666449,1732813842343,-500.0,9.999e-05,2]
[343666450,1732813842353,-601.94739963,9.999e-05,2]
[343666451,1732813842363,-542.49,9.999e-05,2]
[343666452,1732813842373,-500.0,9.999e-05,2]
[343666453,1732813842383,-206.3,9.999e-05,2]
[343666454,1732813842552,-500.0,9.999e-05,2]
[343666455,1732813842562,-500.0,9.999e-05,2]
[343666456,1732813842571,-433.41,9.999e-05,2]
[343666457,1732813842582,-500.0,9.999e-05,2]
[343666458,1732813842592,-500.0,9.999e-05,2]
[343666459,1732813842601,-500.0,9.999e-05,2]
[343666461,1732813842611,-500.0,9.999e-05,2]
[343666463,1732813842620,-500.0,9.999e-05,2]
[343666465,1732813842630,-249.03,9.999e-05,2]
[343666467,1732813842640,-500.0,9.999e-05,2]
[343666468,1732813842649,-540.51,9.999e-05,2]
[343666469,1732813842659,-504.09775217,9.999e-05,2]
[343666470,1732813842669,-500.0,9.999e-05,2]
[343666471,1732813842678,-500.0,9.999e-05,2]
[343666472,1732813842687,-500.0,9.999e-05,2]
[343666473,1732813842696,-500.0,9.999e-05,2]
[343666474,1732813842705,-500.0,9.999e-05,2]
[343666475,1732813842714,-500.0,9.999e-05,2]
[343666476,1732813842725,-256.44158184,9.999e-05,2]
[343666477,1732813842735,-500.0,9.999e-05,2]
[343666478,1732813842744,-500.0,9.999e-05,2]
[343666479,1732813842753,-500.0,9.999e-05,2]
[343666480,1732813842763,-500.0,9.999e-05,2]
[343666481,1732813842773,-500.0,9.999e-05,2]
[343666482,1732813842782,-500.0,9.999e-05,2]
[343666483,1732813842790,-500.0,9.999e-05,2]
[343666484,1732813842800,-500.0,9.999e-05,2]
[343666485,1732813842810,-500.0,9.999e-05,2]
[343666486,1732813842821,-500.0,9.999e-05,2]
[343666487,1732813842834,-264.66,9.999e-05,2]
[343666488,1732813842844,-521.31495725,9.999e-05,2]
[343666489,1732813842852,-500.0,9.999e-05,2]
[343666490,1732813842861,-500.0,9.999e-05,2]
[343666491,1732813842870,-500.0,9.999e-05,2]
[343666492,1732813842879,-500.0,9.999e-05,2]
[343666493,1732813842889,-500.0,9.999e-05,2]
[343666494,1732813842898,-500.0,9.999e-05,2]
[343666495,1732813842907,-500.0,9.999e-05,2]
[343666496,1732813842916,-500.0,9.999e-05,2]
[343666497,1732813842925,-500.0,9.999e-05,2]
[343666498,1732813842934,-500.0,9.999e-05,2]
[343666499,1732813842943,-500.0,9.999e-05,2]
[343666500,1732813842951,-521.76,9.999e-05,2]
[343666501,1732813842960,-500.0,9.999e-05,2]
[343666502,1732813842969,-500.0,9.999e-05,2]
[343666503,1732813842977,-500.0,9.999e-05,2]
[343666504,1732813842987,-500.0,9.999e-05,2]
[343666505,1732813842996,-500.0,9.999e-05,2]
[343666506,1732813843005,-500.0,9.999e-05,2]
[343666507,1732813843014,-500.0,9.999e-05,2]
[343666508,1732813843024,-500.0,9.999e-05,2]
[343666509,1732813843034,-500.0,9.999e-05,2]
[343666510,1732813843043,-500.0,9.999e-05,2]
[343666511,1732813843052,-500.0,9.999e-05,2]
[343666512,1732813843062,-272.58904755,9.999e-05,2]
[343666513,1732813843071,-500.0,9.999e-05,2]
[343666514,1732813843080,-299.46,9.999e-05,2]
[343666515,1732813843096,-500.0,9.999e-05,2]
[343666516,1732813843105,-500.0,9.999e-05,2]
[343666517,1732813843114,-500.0,9.999e-05,2]
[343666518,1732813843122,-555.54,9.999e-05,2]
[343666519,1732813843131,-505.27816907,9.999e-05,2]
[343666520,1732813843140,-500.0,9.999e-05,2]
[343666521,1732813843149,-500.0,9.999e-05,2]
[343666522,1732813843158,-500.0,9.999e-05,2]
[343666523,1732813843167,-167.62,9.999e-05,2]
[343666524,1732813843176,-500.0,9.999e-05,2]
[343666525,1732813843185,-8500.0,9.999e-05,2]
[343666526,1732813843194,-547.7,9.999e-05,2]
[343666527,1732813843203,-500.0,9.999e-05,2]
[343666528,1732813843213,-336.9078791,9.999e-05,2]
[343666529,1732813843223,-500.0,9.999e-05,2]
[343666530,1732813843232,-202.21,9.999e-05,2]
[343666531,1732813843241,-500.0,9.999e-05,2]
[343666532,1732813843251,-500.0,9.999e-05,2]
[343666534,1732813843260,-500.0,9.999e-05,2]
[343666535,1732813843268,-500.0,9.999e-05,2]
[343666536,1732813843277,-350.76,9.999e-05,2]
[343666537,1732813843286,-500.0,9.999e-05,2]
[343666538,1732813843295,-500.0,9.999e-05,2]
[343666539,1732813843304,-500.0,9.999e-05,2]
[343666540,1732813843313,-500.0,9.999e-05,2]
[343666541,1732813843322,-500.0,9.999e-05,2]
[343666542,1732813843333,-518.94612201,9.999e-05,2]
[343666543,1732813843342,-500.0,9.999e-05,2]
[343666544,1732813843351,-500.0,9.999e-05,2]
[343666545,1732813843360,-500.0,9.999e-05,2]
[343666546,1732813843370,-321.60963751,9.999e-05,2]
[343666547,1732813843379,-500.0,9.999e-05,2]
[343666548,1732813843388,-500.0,9.999e-05,2]
[343666549,1732813843397,-500.0,9.999e-05,2]
[343666550,1732813843406,-500.0,9.999e-05,2]
[343666551,1732813843416,-500.0,9.999e-05,2]
[343666552,1732813843425,-500.0,9.999e-05,2]
[343666553,1732813843435,-500.0,9.999e-05,2]
[343666554,1732813843444,-500.0,9.999e-05,2]
[343666555,1732813843453,-237.41,9.999e-05,2]
[343666556,1732813843462,-500.0,9.999e-05,2]
[343666557,1732813843471,-329.88922378,9.999e-05,2]
[343666558,1732813843480,-500.0,9.999e-05,2]
[343666559,1732813843489,-500.0,9.999e-05,2]
[343666560,1732813843499,-344.36,9.999e-05,2]
[343666561,1732813843508,-500.0,9.999e-05,2]
[343666562,1732813843518,-488.46,9.999e-05,2]
[343666563,1732813843528,-500.0,9.999e-05,2]
[343666564,1732813843537,-500.0,9.999e-05,2]
[343666565,1732813843547,-500.0,9.999e-05,2]
[343666566,1732813843557,-491.45,9.999e-05,2]
[343666567,1732813843566,-500.0,9.999e-05,2]
[343666568,1732813843576,-559.62806972,9.999e-05,2]
[343666569,1732813843587,-500.0,9.999e-05,2]
[343666570,1732813843597,-500.0,9.999e-05,2]
[343666571,1732813843606,-304.19,9.999e-05,2]
[343666572,1732813843616,-554.82345518,9.999e-05,2]
[343666573,1732813843625,-500.0,9.999e-05,2]
[343666574,1732813843635,-500.0,9.999e-05,2]
[343666575,1732813843644,-500.0,9.999e-05,2]
[343666576,1732813843660,-500.0,9.999e-05,2]
[343666577,1732813843670,-500.0,9.999e-05,2]
[343666578,1732813843679,-508.40400913,9.999e-05,2]
[343666579,1732813843689,-500.0,9.999e-05,2]
[343666580,1732813843698,-500.0,9.999e-05,2]
[343666581,1732813843707,-284.06,9.999e-05,2]
[343666582,1732813843717,-500.0,9.999e-05,2]
[343666583,1732813843728,-500.0,9.999e-05,2]
[343666584,1732813843738,-500.0,9.999e-05,2]
[343666585,1732813843748,-255.11,9.999e-05,2]
[343666586,1732813843758,-500.0,9.999e-05,2]
[343666587,1732813843768,-500.0,9.999e-05,2]
[343666588,1732813843777,-500.0,9.999e-05,2]
[343666589,1732813843786,-500.0,9.999e-05,2]
[343666590,1732813843800,-500.0,9.999e-05,2]
[343666591,1732813843809,-243.5,9.999e-05,2]
[343666592,1732813843819,-500.0,9.999e-05,2]
[343666593,1732813843829,-500.0,9.999e-05,2]
[343666594,1732813843841,-523.01,9.999e-05,2]
[343666595,1732813843850,-500.0,9.999e-05,2]
[343666596,1732813843860,-166.57,9.999e-05,2]
[343666597,1732813843870,-500.0,9.999e-05,2]
[343666598,1732813843879,-500.0,9.999e-05,2]
[343666599,1732813843889,-500.0,9.999e-05,2]
[343666600,1732813843899,-514.31,9.999e-05,2]
[343666601,1732813843908,-500.0,9.999e-05,2]
[343666602,1732813843917,-522.87,9.999e-05,2]
[343666603,1732813843926,-500.0,9.999e-05,2]
[343666604,1732813843935,-500.0,9.999e-05,2]
[343666605,1732813843945,-500.0,9.999e-05,2]
[343666606,1732813843955,-509.02,9.999e-05,2]
[343666607,1732813843964,-500.0,9.999e-05,2]
[343666608,1732813843973,-439.62,9.999e-05,2]
[343666609,1732813843983,-500.0,9.999e-05,2]
[343666610,1732813843992,-500.0,9.999e-05,2]
[343666611,1732813844002,-500.0,9.999e-05,2]
[343666612,1732813844012,-500.0,9.999e-05,2]
[343666613,1732813844022,-500.0,9.999e-05,2]
[343666614,1732813844032,-500.0,9.999e-05,2]
[343666615,1732813844042,-500.0,9.999e-05,2]
[343666616,1732813844051,-500.0,9.999e-05,2]
[343666617,1732813844061,-500.0,9.999e-05,2]
[343666618,1732813844071,-500.0,9.999e-05,2]
[343666619,1732813844080,-500.0,9.999e-05,2]
[343666620,1732813844090,-500.0,9.999e-05,2]
[343666621,1732813844099,-443.47,9.999e-05,2]
[343666622,1732813844109,-500.0,9.999e-05,2]
[343666623,1732813844118,-284.39290395,9.999e-05,2]
[343666624,1732813844127,-500.0,9.999e-05,2]
[343666625,1732813844136,-500.0,9.999e-05,2]
[343666626,1732813844145,-500.0,9.999e-05,2]
[343666627,1732813844155,-500.0,9.999e-05,2]
[343666628,1732813844163,-388.57,9.999e-05,2]
[343666629,1732813844172,-500.0,9.999e-05,2]
[343666630,1732813844182,-500.0,9.999e-05,2]
[343666631,1732813844191,-500.0,9.999e-05,2]
[343666632,1732813844200,-500.0,9.999e-05,2]
[343666633,1732813844209,-562.7,9.999e-05,2]
[343666634,1732813844218,-500.0,9.999e-05,2]
[343666635,1732813844227,-174.86,9.999e-05,2]
[343666636,1732813844236,-500.0,9.999e-05,2]
[343666637,1732813844245,-504.11856985,9.999e-05,2]
[343666638,1732813844254,-500.0,9.999e-05,2]
[343666639,1732813844263,-500.0,9.999e-05,2]
[343666640,1732813844272,-500.0,9.999e-05,2]
[343666641,1732813844282,-500.0,9.999e-05,2]
[343666642,1732813844291,-500.0,9.999e-05,2]
[343666643,1732813844304,-500.0,9.999e-05,2]
[343666644,1732813844316,-577.02,9.999e-05,2]
[343666645,1732813844330,-500.0,9.999e-05,2]
[343666646,1732813844343,-500.0,9.999e-05,2]
[343666647,1732813844353,-500.0,9.999e-05,2]
[343666648,1732813844365,-247.09104248,9.999e-05,2]
[343666649,1732813844377,-500.0,9.999e-05,2]
[343666650,1732813844388,-180.71916541,9.999e-05,2]
[343666651,1732813844401,-500.0,9.999e-05,2]
[343666652,1732813844413,-503.47685766,9.999e-05,2]
[343666653,1732813844425,-500.0,9.999e-05,2]
[343666654,1732813844436,-500.0,9.999e-05,2]
[343666655,1732813844447,-500.0,9.999e-05,2]
[343666656,1732813844457,-500.0,9.999e-05,2]
[343666657,1732813844469,-224.58,9.999e-05,2]
[343666658,1732813844481,-500.0,9.999e-05,2]
[343666659,1732813844493,-500.0,9.999e-05,2]
[343666660,1732813844505,-610.06,9.999e-05,2]
[343666661,1732813844517,-612.8,9.999e-05,2]
[343666662,1732813844530,-500.0,9.999e-05,2]
[343666663,1732813844543,-503.14732242,9.999e-05,2]
[343666664,1732813844556,-500.0,9.999e-05,2]
[343666665,1732813844568,-500.0,9.999e-05,2]
[343666666,1732813844583,-500.0,9.999e-05,2]
[343666667,1732813844595,-500.0,9.999e-05,2]
[343666668,1732813844608,-500.0,9.999e-05,2]
[343666669,1732813844620,-500.0,9.999e-05,2]
[343666670,1732813844633,-420.71,9.999e-05,2]
[343666671,1732813844645,-500.0,9.999e-05,2]
[343666672,1732813844658,-527.33,9.999e-05,2]
[343666673,1732813844671,-500.0,9.999e-05,2]
[343666674,1732813844683,-358.51,9.999e-05,2]
[343666675,1732813844696,-500.0,9.999e-05,2]
[343666676,1732813844707,-467.69592743,9.999e-05,2]
[343666677,1732813844718,-611.08,9.999e-05,2]
[343666678,1732813844731,-500.0,9.999e-05,2]
[343666679,1732813844744,-567.26,9.999e-05,2]
[343666680,1732813844759,-500.0,9.999e-05,2]
[343666681,1732813844769,-194.12,9.999e-05,2]
[343666682,1732813844781,-500.0,9.999e-05,2]
[343666683,1732813844791,-380.66,9.999e-05,2]
[343666684,1732813844806,-500.0,9.999e-05,2]
[343666685,1732813844818,-230.45,9.999e-05,2]
[343666686,1732813844834,-500.0,9.999e-05,2]
[343666687,1732813844846,-528.61,9.999e-05,2]
[343666688,1732813844857,-500.0,9.999e-05,2]
[343666689,1732813844868,-500.0,9.999e-05,2]
[343666690,1732813844880,-500.0,9.999e-05,2]
[343666691,1732813844892,-633.98,9.999e-05,2]
[343666692,1732813844903,-620.67,9.999e-05,2]
[343666693,1732813844916,-500.0,9.999e-05,2]
[343666694,1732813844927,-500.0,9.999e-05,2]
[343666695,1732813844939,-151.92872266,9.999e-05,2]
[343666696,1732813844950,-500.0,9.999e-05,2]
[343666697,1732813844961,-500.0,9.999e-05,2]
[343666698,1732813844972,-500.0,9.999e-05,2]
[343666699,1732813844984,-500.0,9.999e-05,2]
[343666700,1732813844995,-500.0,9.999e-05,2]
[343666701,1732813845006,-500.0,9.999e-05,2]
[343666702,1732813845018,-223.17580703,9.999e-05,2]
[343666703,1732813845029,-500.0,9.999e-05,2]
[343666704,1732813845041,-334.7,9.999e-05,2]
[343666705,1732813845055,-500.0,9.999e-05,2]
[343666706,1732813845067,-500.0,9.999e-05,2]
[343666707,1732813845078,-500.0,9.999e-05,2]
[343666708,1732813845093,-4008.38428705,9.999e-05,2]
[343666709,1732813845104,-500.0,9.999e-05,2]
[343666710,1732813845115,-645.42,9.999e-05,2]
[343666711,1732813845127,-500.0,9.999e-05,2]
[343666712,1732813845138,-500.0,9.999e-05,2]
[343666713,1732813845149,-498.81758036,9.999e-05,2]
[343666714,1732813845160,-500.0,9.999e-05,2]
[343666715,1732813845172,-500.0,9.999e-05,2]
[343666716,1732813845183,-500.0,9.999e-05,2]
[343666717,1732813845195,-172.64,9.999e-05,2]
[343666718,1732813845206,-500.0,9.999e-05,2]